bitfinex/quotes_SOLUSD_20250919
["timestamp","ask_amount","ask_price","bid_price","bid_amount"]
[1758288911756,9.28731008,240.9,240.87,34.72602818]
[1758288911957,8.71731008,240.9,240.87,34.72602818]
[1758288912867,11.53881605,240.9,240.87,34.72602818]
[1758288913068,8.71731008,240.9,240.87,34.72602818]
[1758288914074,8.71731008,240.9,240.87,2.16602818]
[1758288914378,8.71731008,240.9,240.86,32.54]
[1758288914379,8.71803387,240.88,240.86,32.54]
[1758288915281,8.71803387,240.88,240.85,32.54]
[1758288916054,8.71803387,240.88,240.85,33.21]
[1758288917166,8.71803387,240.88,240.85,32.54]
[1758288917359,8.71803387,240.88,240.86,0.67]
[1758288917558,8.71803387,240.88,240.83,0.67]
[1758288917783,8.71803387,240.88,240.84,32.52]
[1758288917983,8.71803387,240.88,240.85,0.67]
[1758288918675,8.71803387,240.88,240.84,32.52]
[1758288918882,8.71803387,240.88,240.84,33.19]
[1758288919078,2.25150597,240.87,240.82,2.16709747]
[1758288919262,10.96953984,240.88,240.83,33.19]
[1758288919455,10.96953984,240.88,240.83,32.52]
[1758288919654,8.71803387,240.88,240.84,0.67]
[1758288919857,0.57,240.91,240.84,0.67]
[1758288919858,2.49070035,240.9,240.84,0.95432314]
[1758288920056,2.49070035,240.9,240.85,0.67]
[1758288920253,132.0,240.95,240.87,0.28432314]
[1758288920254,2.49034989,240.93,240.87,0.28432314]
[1758288920491,2.49024928,240.94,240.89,0.28432314]
[1758288920673,8.71477776,240.97,240.9,0.67]
[1758288920868,8.71477776,240.97,240.92,0.28432314]
[1758288921071,8.71477776,240.97,240.93,33.19]
[1758288921381,8.71477776,240.97,240.93,32.52]
[1758288921758,2.25150597,240.96,240.93,32.52]
[1758288922173,9.28477776,240.97,240.93,32.52]
[1758288922482,8.71477776,240.97,240.93,32.52]
[1758288922659,6.22484126,240.97,240.93,33.19]
[1758288922976,2.48983318,240.98,240.94,0.95432314]
[1758288923173,2.48983318,240.98,240.95,0.67]
[1758288923374,2.48983318,240.98,240.96,0.67]
[1758288923594,3.48381939,241.11,240.97,33.45432314]
[1758288923788,2.48880039,241.08,241.01,0.28432314]
[1758288923956,2.48880039,241.08,241.0,26.0]
[1758288923957,2.48880039,241.08,241.03,0.28432314]
[1758288924159,2.48880039,241.08,241.04,0.67]
[1758288924400,6.22122761,241.11,241.05,0.67]
[1758288924604,0.57,241.15,241.06,33.19]
[1758288924775,2.48850686,241.11,241.07,0.95432314]
[1758288924974,2.48860022,241.1,241.07,0.95432314]
[1758288925171,2.48829073,241.13,241.08,0.67]
[1758288925410,2.48841015,241.12,241.08,0.67]
[1758288925576,2.48851318,241.11,241.08,0.67]
[1758288925779,2.48860386,241.1,241.08,0.67]
[1758288926583,6.22088314,241.13,241.08,26.95432314]
[1758288926782,2.48860697,241.1,241.08,59.55432314]
[1758288927714,2.48860697,241.1,241.08,58.90432314]
[1758288928017,2.48860697,241.1,241.08,32.90432314]
[1758288928206,2.48860697,241.1,241.08,33.62432314]
[1758288928813,6.22088314,241.13,241.08,33.62432314]
[1758288929103,2.48829869,241.13,241.08,47.36207872]
[1758288929297,2.48839482,241.12,241.08,47.36207872]
[1758288929882,2.48826835,241.14,241.08,47.36207872]
[1758288930080,2.488306,241.13,241.08,47.36207872]
[1758288930295,2.48840624,241.12,241.08,47.36207872]
[1758288930802,0.1,241.16,241.08,47.36207872]
[1758288931375,2.58798097,241.16,241.08,47.36207872]
[1758288931903,0.1,241.16,241.08,47.77687878]
[1758288932401,0.1,241.16,241.15,39.87991715]
[1758288932601,0.1,241.16,241.15,72.58207872]
[1758288932793,0.1,241.16,241.15,73.30207872]
[1758288934378,0.1,241.16,241.15,1.00432314]
[1758288934579,0.1,241.16,241.15,24.04432314]
[1758288934780,0.1,241.16,241.15,0.28432314]
[1758288935000,0.1,241.16,241.15,32.84432314]
[1758288935581,0.1,241.16,241.15,0.28432314]
[1758288936118,0.1,241.16,241.15,32.82432314]
[1758288936416,2.48807795,241.15,241.1,0.14216157]
[1758288936714,8.70827284,241.15,241.11,28.76]
[1758288936892,8.70827284,241.15,241.12,28.76]
[1758288937097,8.70827284,241.15,241.13,32.54]
[1758288937523,2.48807795,241.15,241.13,32.54]
[1758288937811,0.1,241.16,241.14,1.00432314]
[1758288937997,2.5880087,241.16,241.14,1.00432314]
[1758288938402,2.5880087,241.16,241.15,32.52]
[1758288939417,2.5880087,241.16,241.14,0.28432314]
[1758288939726,2.5880087,241.16,241.15,32.52]
[1758288939727,8.80794567,241.16,241.15,32.52]
[1758288940718,2.5880087,241.16,241.15,32.52]
[1758288941022,0.1,241.16,241.15,32.52]
[1758288941316,0.1,241.16,241.15,32.80432314]
[1758288941501,0.1,241.16,241.15,33.52432314]
[1758288942297,0.1,241.16,241.15,47.09991715]
[1758288942524,0.1,241.16,241.15,51.38887531]
[1758288942895,0.1,241.19,241.18,26.28432314]
[1758288943094,0.1,241.19,241.18,58.78432314]
[1758288943311,0.1,241.19,241.18,59.50432314]
[1758288943490,0.1,241.19,241.18,73.24207872]
[1758288944613,0.1,241.19,241.18,59.64648471]
[1758288945014,0.1,241.19,241.18,77.3883595]
[1758288945216,0.1,241.23,241.19,14.02207872]
[1758288945419,0.1,241.23,241.22,40.02207872]
[1758288945718,0.1,241.23,241.22,72.52207872]
[1758288945905,0.1,241.23,241.22,73.24207872]
[1758288947016,0.1,241.23,241.22,77.38767195]
[1758288948213,0.1,241.23,241.22,63.79207794]
[1758288948418,0.1,241.23,241.22,77.38767195]
[1758288949123,0.1,241.23,241.22,77.34767195]
[1758288949993,0.1,241.23,241.22,39.59559401]
[1758288950309,0.1,241.23,241.22,14.31559401]
[1758288950496,0.1,241.23,241.22,46.91775558]
[1758288950803,0.1,241.23,241.22,14.74207872]
[1758288951002,0.1,241.23,241.22,13.59559401]
[1758288951209,2.58725282,241.23,241.22,46.05559401]
[1758288951503,0.1,241.23,241.22,46.05559401]
[1758288951697,0.1,241.23,241.22,46.48207872]
[1758288951890,0.1,241.23,241.22,14.02207872]
[1758288952099,3.28725282,241.23,241.21,13.59559401]
[1758288952296,2.58725282,241.23,241.22,32.46]
[1758288952914,3.28725282,241.23,241.22,32.46]
[1758288953717,13.13966001,241.23,241.13,13.59559401]
[1758288953904,13.13966001,241.23,241.11,2.58725282]
[1758288953905,0.7,241.22,241.15,13.59559401]
[1758288954131,0.7,241.21,241.11,2.58725282]
[1758288954430,4.33427512,241.2,241.13,32.46]
[1758288954632,0.7,241.2,241.13,32.46]
[1758288954813,21.94164903,241.23,241.14,0.72]
[1758288955137,3.63427512,241.22,241.13,32.46]
[1758288955297,9.40610671,241.21,241.14,0.28432314]
[1758288955926,9.40610671,241.21,241.15,58.44]
[1758288956911,8.70610671,241.21,241.15,59.16]
[1758288957094,2.48745906,241.21,241.16,0.28432314]
[1758288957300,2.48745906,241.21,241.17,0.72]
[1758288957534,2.58735351,241.23,241.19,0.28432314]
[1758288957833,2.58727202,241.23,241.21,0.28432314]
[1758288958331,3.26727202,241.23,241.21,0.28432314]
[1758288958531,3.26727202,241.23,241.15,26.72]
[1758288958532,0.68,241.22,241.15,0.72]
[1758288958824,0.68,241.22,241.17,0.28432314]
[1758288959038,8.80540409,241.23,241.17,0.28432314]
[1758288959203,9.48540409,241.23,241.17,0.28432314]
[1758288960445,3.63427512,241.21,241.12,13.59559401]
[1758288960645,4.31427512,241.21,241.16,26.0]
[1758288960944,0.68,241.2,241.17,32.44]
[1758288961108,2.48766532,241.19,241.17,32.44]
[1758288961547,2.48735594,241.22,241.18,1.00432314]
[1758288962149,2.48735594,241.22,241.18,0.28432314]
[1758288962446,0.1,241.23,241.21,26.28432314]
[1758288962650,0.1,241.23,241.22,46.31991715]
[1758288962831,0.1,241.23,241.22,47.03991715]
[1758288963353,2.58725282,241.23,241.22,46.31991715]
[1758288963658,0.1,241.23,241.22,47.18207872]
[1758288964236,0.1,241.23,241.22,51.32767195]
[1758288965158,0.1,241.23,241.22,47.18207872]
[1758288965746,0.1,241.23,241.22,51.32767195]
[1758288966956,0.1,241.23,241.22,51.74223127]
[1758288967156,0.1,241.24,241.23,18.1675001]
[1758288967340,0.1,241.25,241.23,18.8875001]
[1758288967541,0.1,241.29,241.28,39.59559401]
[1758288967752,0.1,241.29,241.28,72.44207872]
[1758288968046,0.1,241.29,241.28,73.16207872]
[1758288969362,0.1,241.29,241.28,77.30664105]
[1758288969539,0.1,241.29,241.28,77.72109728]
[1758288969731,0.1,241.34,241.28,87.66804688]
[1758288969928,0.1,241.34,241.33,14.02207872]
[1758288970145,0.1,241.34,241.33,46.42207872]
[1758288970358,0.1,241.34,241.33,47.14207872]
[1758288971231,0.1,241.34,241.33,14.02207872]
[1758288971450,0.1,241.34,241.33,46.40207872]
[1758288972072,0.1,241.34,241.33,14.02207872]
[1758288972246,0.1,241.34,241.33,46.40207872]
[1758288972566,2.58611916,241.34,241.33,0.14216157]
[1758288972748,0.1,241.34,241.33,32.52216157]
[1758288972945,0.1,241.34,241.33,46.25991715]
[1758288973167,0.1,241.34,241.33,47.12207872]
[1758288973347,0.1,241.34,241.33,51.26578236]
[1758288974863,0.1,241.34,241.33,46.40207872]
[1758288975286,0.1,241.34,241.33,46.38207872]
[1758288975786,0.1,241.34,241.33,14.02207872]
[1758288975975,0.1,241.34,241.33,46.38207872]
[1758288977779,0.1,241.34,241.33,47.10207872]
[1758288978878,0.1,241.34,241.33,46.38207872]
[1758288979385,2.58611916,241.34,241.33,14.02207872]
[1758288979568,2.58611916,241.34,241.33,46.36207872]
[1758288979891,2.58611916,241.34,241.33,0.28432314]
[1758288980060,2.58611916,241.34,241.33,32.62432314]
[1758288980261,2.58611916,241.34,241.33,0.28432314]
[1758288980496,2.58611916,241.34,241.33,32.62432314]
[1758288980657,2.58611916,241.34,241.33,26.28432314]
[1758288980658,3.26611916,241.34,241.33,26.28432314]
[1758288980858,3.26611916,241.34,241.33,32.34]
[1758288981074,9.48141707,241.34,241.25,0.72]
[1758288981272,9.48141707,241.34,241.26,13.59559401]
[1758288981469,0.68,241.33,241.29,0.28432314]
[1758288981692,8.80141707,241.34,241.29,0.28432314]
[1758288981693,2.58611916,241.34,241.3,32.34]
[1758288981895,3.26611916,241.34,241.3,13.59559401]
[1758288982201,3.26611916,241.34,241.33,39.87991715]
[1758288982202,0.1,241.34,241.33,39.87991715]
[1758288982375,0.1,241.34,241.33,47.08207872]
[1758288983194,0.1,241.34,241.33,46.36207872]
[1758288983386,0.1,241.34,241.33,14.02207872]
[1758288983592,3.26611916,241.34,241.3,26.0]
[1758288983793,0.68,241.33,241.28,13.59559401]
[1758288984005,2.48632521,241.32,241.29,32.38]
[1758288984370,2.48632521,241.32,241.31,26.0]
[1758288984572,2.5861878,241.34,241.31,26.0]
[1758288984804,2.5861878,241.34,241.32,32.38]
[1758288985406,0.1,241.34,241.33,13.87991715]
[1758288986103,2.58611916,241.34,241.33,39.87991715]
[1758288986286,3.28611916,241.34,241.33,72.25991715]
[1758288986485,2.58611916,241.34,241.33,72.25991715]
[1758288986895,0.1,241.34,241.33,72.25991715]
[1758288987681,0.1,241.34,241.33,72.40207872]
[1758288987989,0.1,241.34,241.33,40.02207872]
[1758288988189,0.1,241.34,241.33,73.06207872]
[1758288988402,0.1,241.34,241.33,72.38207872]
[1758288989095,0.1,241.34,241.33,40.02207872]
[1758288989299,3.28611916,241.34,241.28,26.0]
[1758288989526,3.28611916,241.34,241.29,32.34]
[1758288989722,0.7,241.33,241.26,13.59559401]
[1758288989926,2.48632521,241.32,241.28,13.87991715]
[1758288990094,8.70213823,241.32,241.28,13.59559401]
[1758288990292,8.70213823,241.32,241.29,58.34]
[1758288990488,0.7,241.31,241.29,32.34]
[1758288990712,0.7,241.3,241.29,32.34]
[1758288990924,4.33427512,241.3,241.29,32.34]
[1758288991105,4.33427512,241.3,241.21,13.59559401]
[1758288991314,3.63427512,241.29,241.23,13.59559401]
[1758288991621,3.63427512,241.29,241.24,0.28432314]
[1758288991801,3.63427512,241.29,241.25,32.34]
[1758288992003,6.21581302,241.32,241.26,13.73775558]
[1758288992203,6.21581302,241.32,241.27,0.14216157]
[1758288992414,6.91581302,241.32,241.28,32.32]
[1758288992610,2.48642824,241.31,241.28,32.32]
[1758288992817,0.1,241.34,241.31,26.0]
[1758288992990,0.1,241.34,241.32,32.60432314]
[1758288993706,0.1,241.34,241.33,13.87991715]
[1758288993912,2.58611916,241.34,241.33,13.87991715]
[1758288994107,0.1,241.34,241.33,14.70207872]
[1758288994804,0.1,241.34,241.33,18.84578236]
[1758288995820,0.1,241.34,241.33,14.70207872]
[1758288996316,0.1,241.34,241.33,46.36207872]
[1758288996724,0.1,241.34,241.33,14.02207872]
[1758288996932,0.1,241.34,241.33,47.04207872]
[1758288997438,0.1,241.34,241.33,0.28432314]
[1758288997439,2.58611916,241.34,241.33,0.28432314]
[1758288997730,2.58611916,241.34,241.33,32.34]
[1758288997895,2.58611916,241.34,241.33,32.48216157]
[1758288998091,0.1,241.34,241.33,32.48216157]
[1758288998296,0.1,241.34,241.33,32.62432314]
[1758288999123,0.1,241.34,241.33,46.89991715]
[1758288999509,0.1,241.34,241.33,51.18578236]
[1758289000717,0.1,241.34,241.33,18.84578236]
[1758289000915,0.1,241.34,241.33,51.16578236]
[1758289001730,0.1,241.34,241.33,51.58015272]
[1758289001936,0.1,241.34,241.33,51.16578236]
[1758289003233,0.1,241.34,241.33,51.58015272]
[1758289003418,0.1,241.34,241.33,51.16578236]
[1758289006129,0.1,241.34,241.33,18.84578236]
[1758289006442,0.1,241.34,241.33,51.16578236]
[1758289006937,0.1,241.34,241.33,18.84578236]
[1758289007141,0.1,241.34,241.33,46.34207872]
[1758289007544,0.1,241.34,241.33,14.02207872]
[1758289007755,0.1,241.34,241.33,50.48578236]
[1758289007915,0.1,241.34,241.33,14.02207872]
[1758289008125,0.1,241.34,241.33,45.91559401]
[1758289008659,0.1,241.34,241.33,46.05775558]
[1758289008833,0.1,241.34,241.33,46.34207872]
[1758289009016,0.1,241.34,241.33,47.02207872]
[1758289009225,0.1,241.34,241.33,51.16578236]
[1758289012151,0.1,241.34,241.33,47.02207872]
[1758289012350,0.1,241.34,241.33,14.70207872]
[1758289012857,0.1,241.34,241.33,13.59559401]
[1758289013151,0.1,241.34,241.33,45.91559401]
[1758289013531,0.1,241.34,241.33,46.05775558]
[1758289013728,0.1,241.34,241.33,46.34207872]
[1758289014861,0.1,241.34,241.33,51.16578236]
[1758289016538,0.1,241.34,241.33,46.34207872]
[1758289017354,0.1,241.34,241.33,50.48578236]
[1758289018155,0.1,241.34,241.33,46.34207872]
[1758289018654,0.1,241.34,241.33,51.14578236]
[1758289018830,0.1,241.34,241.33,46.34207872]
[1758289019254,0.1,241.34,241.33,50.48578236]
[1758289019445,0.1,241.34,241.33,51.14578236]
[1758289020055,0.1,241.34,241.33,47.00207872]
[1758289020265,0.1,241.34,241.33,51.14578236]
[1758289022157,1e-08,241.34,241.33,51.14578236]
[1758289022470,0.1,241.39,241.38,14.02207872]
[1758289022657,0.1,241.41,241.4,14.02207872]
[1758289022964,0.1,241.41,241.4,46.75632892]
[1758289023458,0.1,241.41,241.4,51.55883099]
[1758289024042,0.1,241.41,241.4,41.09632892]
[1758289024242,0.1,241.41,241.4,50.48458079]
[1758289024444,0.1,241.41,241.4,46.34207872]
[1758289024936,0.1,241.41,241.4,13.73775558]
[1758289025136,0.76,241.41,241.4,46.05775558]
[1758289025361,0.76,241.41,241.4,45.91559401]
[1758289025675,0.76,241.41,241.4,46.34207872]
[1758289026181,0.76,241.41,241.4,14.02207872]
[1758289026389,3.24539828,241.41,241.37,26.0]
[1758289026663,2.58539828,241.41,241.4,26.28432314]
[1758289026837,2.58539828,241.41,241.4,58.60432314]
[1758289027039,0.1,241.41,241.4,58.60432314]
[1758289027760,0.76,241.41,241.4,58.60432314]
[1758289028145,3.24539828,241.41,241.4,58.60432314]
[1758289028949,2.58539828,241.41,241.4,58.60432314]
[1758289029141,3.24539828,241.41,241.34,0.14216157]
[1758289029462,3.24539828,241.41,241.38,26.0]
[1758289029668,2.4856042,241.39,241.32,13.59559401]
[1758289029847,0.66,241.38,241.34,13.59559401]
[1758289030050,0.66,241.37,241.35,32.32]
[1758289030254,0.66,241.36,241.35,32.32]
[1758289032051,14.22677058,241.39,241.35,32.60432314]
[1758289032052,11.74116638,241.39,241.35,32.60432314]
[1758289032251,0.66,241.39,241.35,32.60432314]
[1758289032567,0.66,241.38,241.35,32.60432314]
[1758289033571,0.66,241.37,241.36,32.32]
[1758289034066,3.14581016,241.37,241.36,32.32]
[1758289035048,2.48581016,241.37,241.36,32.32]
[1758289036142,2.4856042,241.39,241.36,32.32]
[1758289036375,5.52715586,241.37,241.31,13.87991715]
[1758289036674,5.52715586,241.37,241.33,0.28432314]
[1758289036872,8.69961472,241.39,241.33,0.28432314]
[1758289037542,8.69961472,241.39,241.33,14.02207872]
[1758289038572,2.4856042,241.39,241.33,14.02207872]
[1758289039163,0.66,241.38,241.33,14.02207872]
[1758289039361,8.69961472,241.39,241.33,14.02207872]
[1758289039972,8.69961472,241.39,241.33,13.87991715]
[1758289040376,6.18715586,241.38,241.3,0.14216157]
[1758289040550,5.52715586,241.37,241.31,32.60432314]
[1758289040750,5.52715586,241.37,241.32,32.32]
[1758289040951,0.66,241.36,241.32,32.32]
[1758289041676,0.66,241.36,241.31,0.28432314]
[1758289041677,5.52715586,241.34,241.26,26.66]
[1758289041883,5.52715586,241.34,241.3,26.0]
[1758289042087,5.52715586,241.34,241.31,32.32]
[1758289042583,2.48622218,241.33,241.31,32.32]
[1758289043682,2.48622218,241.33,241.32,32.32]
[1758289044459,8.70146902,241.34,241.32,32.32]
[1758289045881,6.18715586,241.33,241.3,32.32]
[1758289046779,2.48632521,241.32,241.3,32.32]
[1758289047473,6.18715586,241.31,241.25,2.16235025]
[1758289047675,5.52715586,241.27,241.25,2.16235025]
[1758289047863,6.18715586,241.27,241.26,32.32]
[1758289049070,8.67399632,241.27,241.21,0.1]
[1758289049276,5.52715586,241.24,241.22,32.32]
[1758289049483,5.52715586,241.25,241.22,32.32]
[1758289049689,8.70394163,241.27,241.22,33.01]
[1758289049989,2.48684046,241.27,241.23,0.69]
[1758289050489,0.66,241.29,241.23,0.69]
[1758289050490,2.48673106,241.29,241.24,0.69]
[1758289050694,2.48673106,241.29,241.25,33.01]
[1758289050890,2.48673106,241.29,241.26,0.69]
[1758289051083,8.70226079,241.32,241.26,0.69]
[1758289052503,0.66,241.31,241.23,26.0]
[1758289052683,5.52715586,241.26,241.24,32.32]
[1758289052880,0.66,241.29,241.24,32.32]
[1758289053200,5.52715586,241.29,241.24,33.01]
[1758289053407,6.18715586,241.29,241.22,0.97432314]
[1758289053583,6.18715586,241.29,241.25,32.32]
[1758289053779,8.70226079,241.32,241.25,32.32]
[1758289053985,6.18715586,241.31,241.25,32.32]
[1758289054421,8.70226079,241.32,241.26,0.69]
[1758289054710,2.48632521,241.32,241.26,0.97432314]
[1758289055080,2.4862074,241.34,241.29,26.0]
[1758289055285,2.48601512,241.36,241.3,33.29432314]
[1758289055588,2.48550124,241.4,241.31,0.69]
[1758289055811,2.48550124,241.4,241.33,0.28432314]
[1758289055987,2.48550124,241.4,241.35,0.28432314]
[1758289056189,2.48550124,241.4,241.36,0.69]
[1758289056506,2.48550124,241.4,241.35,0.28432314]
[1758289056699,2.58541668,241.41,241.37,0.69]
[1758289056897,2.58541668,241.41,241.38,32.32]
[1758289057086,2.58541668,241.41,241.38,33.01]
[1758289058114,0.1,241.41,241.39,0.69]
[1758289058317,0.1,241.41,241.4,0.69]
[1758289058906,0.1,241.41,241.4,44.71241922]
[1758289059107,0.1,241.41,241.4,44.85458079]
[1758289061824,0.1,241.41,241.4,46.51223397]
[1758289063516,0.1,241.41,241.4,78.83223397]
[1758289063821,0.1,241.41,241.4,77.17458079]
[1758289065422,0.1,241.41,241.4,44.85458079]
[1758289065634,0.1,241.41,241.4,77.17458079]
[1758289067429,0.1,241.41,241.4,73.03207872]
[1758289067609,0.1,241.41,241.4,73.01207872]
[1758289068730,0.1,241.41,241.4,40.02207872]
[1758289069029,0.1,241.41,241.4,73.01207872]
[1758289069716,0.1,241.41,241.4,77.15458079]
[1758289070120,0.1,241.41,241.4,73.01207872]
[1758289071327,0.1,241.41,241.4,72.32207872]
[1758289071920,0.1,241.41,241.4,73.01207872]
[1758289072414,0.1,241.41,241.4,72.32207872]
[1758289072842,0.1,241.41,241.4,77.15458079]
[1758289073213,0.1,241.41,241.4,73.01207872]
[1758289073418,0.1,241.41,241.4,77.15458079]
[1758289074437,0.1,241.41,241.4,73.01207872]
[1758289074731,0.1,241.41,241.4,77.15458079]
[1758289075110,0.1,241.41,241.4,40.71207872]
[1758289075307,0.1,241.41,241.4,39.87991715]
[1758289075531,0.1,241.41,241.4,72.17991715]
[1758289075721,0.1,241.41,241.4,72.32207872]
[1758289076161,3.24539828,241.41,241.35,13.59559401]
[1758289076440,3.24539828,241.41,241.36,32.3]
[1758289076441,0.66,241.4,241.36,32.3]
[1758289076647,0.66,241.4,241.28,10.36118712]
[1758289076648,2.09448636,241.39,241.22,4.14559323]
[1758289076817,1.43448636,241.35,241.23,33.02]
[1758289077013,1.43448636,241.33,241.27,6.2131184]
[1758289077336,0.66,241.34,241.31,26.0]
[1758289077536,0.66,241.33,241.32,32.3]
[1758289077958,3.14622218,241.33,241.32,32.3]
[1758289079849,0.66,241.33,241.32,32.3]
[1758289080150,3.14622218,241.33,241.32,32.3]
[1758289080854,12.99527635,241.33,241.32,32.3]
[1758289081018,12.99527635,241.33,241.31,32.3]
[1758289081213,0.72,241.32,241.31,32.3]
[1758289081845,3.20632521,241.32,241.31,32.3]
[1758289083234,3.20632521,241.32,241.25,28.16287318]
[1758289083235,9.42213823,241.32,241.25,28.16287318]
[1758289083428,4.35349871,241.31,241.26,32.32]
[1758289083635,4.35349871,241.31,241.25,28.16287318]
[1758289083944,8.7028595,241.3,241.26,32.32]
[1758289084119,3.63349871,241.27,241.25,2.16287318]
[1758289084319,3.63349871,241.27,241.26,32.32]
[1758289084921,0.72,241.27,241.26,32.32]
[1758289085120,4.35349871,241.27,241.26,32.32]
[1758289086049,6.12033917,241.27,241.26,32.32]
[1758289086851,0.72,241.3,241.26,32.32]
[1758289087027,2.48666719,241.29,241.26,32.98]
[1758289087244,6.21567132,241.33,241.27,0.28432314]
[1758289087462,0.72,241.34,241.27,0.28432314]
[1758289087463,6.21484744,241.36,241.27,14.53991715]
[1758289088160,8.70076059,241.36,241.27,14.53991715]
[1758289088474,8.70076059,241.36,241.3,26.0]
[1758289088769,2.48591315,241.36,241.31,32.32]
[1758289089357,2.48591315,241.36,241.31,32.98]
[1758289089963,2.48591315,241.36,241.31,32.32]
[1758289090164,8.70033557,241.37,241.31,32.32]
[1758289090368,0.72,241.36,241.31,32.32]
[1758289090671,2.48566825,241.39,241.31,32.98]
[1758289090884,2.48566825,241.39,241.32,0.66]
[1758289091177,3.63349871,241.39,241.31,32.32]
[1758289091356,3.63349871,241.39,241.32,0.66]
[1758289091557,135.20550487,241.4,241.32,0.94432314]
[1758289091773,0.72,241.39,241.32,0.94432314]
[1758289092279,2.48570718,241.38,241.32,0.94432314]
[1758289092854,8.69997513,241.38,241.28,26.14216157]
[1758289093057,4.35349871,241.37,241.32,26.0]
[1758289093273,8.69997513,241.38,241.33,32.32]
[1758289093578,13.05347384,241.38,241.33,32.32]
[1758289093778,12.33347384,241.38,241.33,32.32]
[1758289094081,0.72,241.37,241.33,32.32]
[1758289094257,2.48591315,241.36,241.33,32.32]
[1758289096273,8.70069604,241.36,241.33,32.32]
[1758289096978,12.33419475,241.36,241.33,32.32]
[1758289097476,13.05419475,241.36,241.33,32.32]
[1758289097983,10.85685905,241.36,241.33,32.32]
[1758289098282,10.13685905,241.36,241.28,0.66]
[1758289098450,1.43616301,241.34,241.29,32.32]
[1758289098656,1.43616301,241.32,241.28,26.0]
[1758289098873,8.70069604,241.36,241.28,26.0]
[1758289098874,1.43616301,241.34,241.29,0.66]
[1758289099066,10.13685905,241.36,241.3,0.66]
[1758289099265,8.70069604,241.36,241.3,0.66]
[1758289099587,10.13685905,241.36,241.28,58.98]
[1758289100076,8.70069604,241.36,241.28,58.32]
[1758289100282,8.70069604,241.36,241.29,0.66]
[1758289101808,0.72,241.35,241.28,58.32]
[1758289102279,2.48611916,241.34,241.28,58.32]
[1758289102484,2.48611916,241.34,241.29,0.66]
[1758289103076,2.48611916,241.34,241.28,58.32]
[1758289103077,9.42141707,241.34,241.28,58.32]
[1758289103275,3.20611916,241.34,241.28,58.32]
[1758289103475,2.48611916,241.34,241.29,0.66]
[1758289103661,2.48611916,241.34,241.3,0.66]
[1758289104058,2.48611916,241.34,241.28,58.98]
[1758289104278,3.92259125,241.31,241.25,2.16287318]
[1758289104576,1.43616301,241.3,241.25,2.16287318]
[1758289104882,1.43616301,241.28,241.25,2.16287318]
[1758289105058,0.72,241.27,241.23,32.32]
[1758289105379,1.43616301,241.28,241.23,32.32]
[1758289105586,1.43616301,241.28,241.23,33.04]
[1758289106170,2.11616301,241.28,241.23,32.32]
[1758289106562,2.48684046,241.27,241.23,32.32]
[1758289106768,8.70394163,241.27,241.23,32.32]
[1758289107866,8.70394163,241.27,241.23,33.04]
[1758289108982,2.48684046,241.27,241.24,0.72]
[1758289109182,6.21565721,241.33,241.25,0.72]
[1758289109386,7.65182022,241.33,241.25,0.72]
[1758289110269,8.70187939,241.33,241.25,0.72]
[1758289110777,8.70187939,241.33,241.25,4.86506631]
[1758289110970,8.70187939,241.33,241.26,0.72]
[1758289111491,1.43616301,241.29,241.22,28.16366732]
[1758289111695,1.43616301,241.29,241.23,32.60432314]
[1758289112371,2.4867374,241.28,241.24,0.72]
[1758289112572,2.48644069,241.31,241.25,0.72]
[1758289112972,1.43616301,241.3,241.23,32.60432314]
[1758289113387,1.43616301,241.3,241.23,32.32]
[1758289113572,1.43616301,241.29,241.22,28.88366732]
[1758289113772,1.43616301,241.29,241.23,32.32]
[1758289113985,1.43616301,241.29,241.23,33.04]
[1758289114188,132.0,241.35,241.23,33.04]
[1758289114395,1.43616301,241.32,241.24,0.72]